[Event "Reykjavik Open"]
[Site "Reykjavik, Iceland"]
[Date "????.??.??"]
[Round "2.16"]
[White "Djukic, Nikola"]
[Black "Jacobsen, Mikkel Manosri"]
[Result "0-1"]
[WhiteElo "2566"]
[BlackElo "2302"]
[PlyCount "33"]
[TimeControl "6000+605"]
[WhiteClock "1:32:56"]
[BlackClock "1:18:15"]

1. e4 {[%emt 0:00:03]} e5 {[%emt 0:00:07]} 2. Nf3 {[%emt 0:00:08]} Nc6 {
[%emt 0:00:05]} 3. Bb5 {[%emt 0:00:07]} a6 {[%emt 0:00:05]} 4. Ba4 {[%emt 0:00:
05]} Nf6 {[%emt 0:00:04]} 5. O-O {[%emt 0:00:09]} Be7 {[%emt 0:00:03]} 6. Re1 {
[%emt 0:00:06]} b5 {[%emt 0:00:04]} 7. Bb3 {[%emt 0:00:05]} d6 {[%emt 0:00:06]}
8. c3 {[%emt 0:00:05]} O-O {[%emt 0:00:04]} 9. h3 {[%emt 0:00:04]} Na5 {
[%emt 0:00:04]} 10. Bc2 {[%emt 0:00:08]} c5 {[%emt 0:00:04]} 11. d4 {[%emt 0:
00:05]} Nd7 {[%emt 0:00:04]} 12. a4 {[%emt 0:00:07]} Rb8 {[%emt 0:01:45]} 13.
axb5 {[%emt 0:01:42]} axb5 {[%emt 0:00:06]} 14. b3 {[%emt 0:00:07]} exd4 {
[%emt 0:06:54]} 15. cxd4 {[%emt 0:00:09]} Nc6 {[%emt 0:00:04]} 16. Nc3 {
[%emt 0:01:08]} Bf6 {[%emt 0:10:34]} 17. Be3 {[%emt 0:01:49]} 0-1